Workbook

Sheet Running Tab
A1: BROKER DRAWER | K1: NATIONWIDE DRAWER
A2: TRANSACTIONS | D2: TOTALS | K2: TRANSACTIONS | N2: TOTALS
A3: BEGINNING OF DAY | B3: 400 | D3: =SUM(H3:H6) -> 0 | E3: CASH OR CHECK IN | H3: =SUM(B4,B9,B14,B19,B24,B29,B34,B39) -> 0 | I3: THRU 31 | K3: BEGINNING OF DAY | L3: 0 | N3: =SUM(R3:R6) -> 0 | O3: CASH OR CHECK IN | R3: =SUM(L4,L9,L14,L19,L24,L29,L34,L39) -> 0 | S3: THRU 31
A4: CASH OR CHECK IN | B4: 0 | D4: =SUM(H7:H8) -> 0 | E4: PAYMENTS DUE | H4: =SUM(B44,B49,B54,B59,B64,B69,B74,B79) -> 0 | I4: THRU 63 | K4: CASH OR CHECK IN | L4: 0 | N4: =SUM(R7:R8) -> 0 | O4: PAYMENTS DUE | R4: =SUM(L44,L49,L54,L59,L64,L69,L74,L79) -> 0 | S4: THRU 63
A5: AMOUNT DUE | B5: 0 | D5: =SUM(H9:H10) -> 0 | E5: CHANGE TO PH | H5: =SUM(B84,B89,B94,B99,B104,B109,B114,B119,B124,B129,B134,B139,B144,B149,B154,B159,B164) -> 0 | I5: Thru 131 | K5: AMOUNT DUE | L5: 0 | N5: =SUM(R9:R10) -> 0 | O5: CHANGE TO PH | R5: =SUM(L84,L89,L94,L99,L104,L109,L114,L119,L124,L129,L134,L139,L144,L149,L154,L159,L164) -> 0 | S5: Thru 131
A6: CHANGE TO PH | B6: =B5-B4 -> 0 | D6: =(B3+D3)+D5 -> 400 | E6: DRAWER BALANCE | H6: =SUM(B169,B174,B179,B184,B189,B194,B199,B204,B209,B214,B219,B224,B229,B234,B239,B244,B249) -> 0 | I6: Thru 195 | K6: CHANGE TO PH | L6: =L5-L4 -> 0 | N6: =(L3+N3)+N5 -> 0 | O6: DRAWER BALANCE | R6: =SUM(L169,L174,L179,L184,L189,L194,L199,L204,L209,L214,L219,L224,L229,L234,L239,L244,L249) -> 0 | S6: Thru 195
A7: Transaction Balance | B7: =(B5-B6)-B4 -> 0 | D7: =D6-B3 -> 0 | E7: TOTAL RECEIPTS | H7: =SUM(B5,B10,B15,B20,B25,B30,B35,B40,B45,B50,B55,B60,B65,B70,B75,B80,B85,B90,B95,B100,B105,B110,B115,B120,B125) -> 0 | I7: AMOUNT DUE 1-25 PAYMENTS | K7: Transaction Balance | L7: =(L5-L6)-L4 -> 0 | N7: =N6-L3 -> 0 | O7: TOTAL RECEIPTS | R7: =SUM(L5,L10,L15,L20,L25,L30,L35,L40,L45,L50,L55,L60,L65,L70,L75,L80,L85,L90,L95,L100,L105,L110,L115,L120,L125) -> 0 | S7: AMOUNT DUE 1-25 PAYMENTS
A8: DRAWER BALANCE | B8: =(B3+B4)+B6 -> 400 | H8: =SUM(B130,B135,B140,B145,B150,B155,B160,B165,B170,B175,B180,B185,B190,B195,B200,B205,B210,B215,B220,B225,B230,B235,B240,B245,B250) -> 0 | I8: AMOUNT DUE 26-50 PAYMENS | K8: DRAWER BALANCE | L8: =(L3+L4)+L6 -> 0 | R8: =SUM(L130,L135,L140,L145,L150,L155,L160,L165,L170,L175,L180,L185,L190,L195,L200,L205,L210,L215,L220,L225,L230,L235,L240,L245,L250) -> 0 | S8: AMOUNT DUE 26-50 PAYMENS
A9: CASH OR CHECK IN | B9: 0 | H9: =SUM(B6,B11,B16,B21,B26,B31,B36,B41,B46,B51,B56,B61,B66,B71,B76,B81,B86,B91,B96,B101,B106,B111,B116,B121,B126) -> 0 | I9: CHANGE DUE PH 1-25 | K9: CASH OR CHECK IN | L9: 0 | R9: =SUM(L6,L11,L16,L21,L26,L31,L36,L41,L46,L51,L56,L61,L66,L71,L76,L81,L86,L91,L96,L101,L106,L111,L116,L121,L126) -> 0 | S9: CHANGE DUE PH 1-25
A10: AMOUNT DUE | B10: 0 | H10: =SUM(B131,B136,B141,B146,B151,B156,B161,B166,B171,B176,B181,B186,B191,B196,B201,B206,B211,B216,B221,B226,B231,B236,B241,B246,B251) -> 0 | I10: CHANGE DUE PH 26-50 | K10: AMOUNT DUE | L10: 0 | R10: =SUM(L131,L136,L141,L146,L151,L156,L161,L166,L171,L176,L181,L186,L191,L196,L201,L206,L211,L216,L221,L226,L231,L236,L241,L246,L251) -> 0 | S10: CHANGE DUE PH 26-50
A11: CHANGE DUE PH | B11: =B10-B9 -> 0 | K11: CHANGE DUE PH | L11: =L10-L9 -> 0
A12: Transaction Balance | B12: =(B10-B11)-B9 -> 0 | K12: Transaction Balance | L12: =(L10-L11)-L9 -> 0
A13: DRAWER BALANCE | B13: =(B8+B9)+B11 -> 400 | K13: DRAWER BALANCE | L13: =(L8+L9)+L11 -> 0
A14: CASH OR CHECK IN | B14: 0 | K14: CASH OR CHECK IN | L14: 0
A15: AMOUNT DUE | B15: 0 | K15: AMOUNT DUE | L15: 0
A16: CHANGE DUE PH | B16: =B15-B14 -> 0 | K16: CHANGE DUE PH | L16: =L15-L14 -> 0
A17: Transaction Balance | B17: =(B15-B16)-B14 -> 0 | K17: Transaction Balance | L17: =(L15-L16)-L14 -> 0
A18: DRAWER BALANCE | B18: =(B13+B14)+B16 -> 400 | K18: DRAWER BALANCE | L18: =(L13+L14)+L16 -> 0
A19: CASH OR CHECK IN | B19: 0 | K19: CASH OR CHECK IN | L19: 0
A20: AMOUNT DUE | B20: 0 | K20: AMOUNT DUE | L20: 0
A21: CHANGE DUE PH | B21: =B20-B19 -> 0 | K21: CHANGE DUE PH | L21: =L20-L19 -> 0
A22: Transaction Balance | B22: =(B20-B21)-B19 -> 0 | K22: Transaction Balance | L22: =(L20-L21)-L19 -> 0
A23: DRAWER BALANCE | B23: =(B18+B19)+B21 -> 400 | K23: DRAWER BALANCE | L23: =(L18+L19)+L21 -> 0
A24: CASH OR CHECK IN | B24: 0 | K24: CASH OR CHECK IN | L24: 0
A25: AMOUNT DUE | B25: 0 | K25: AMOUNT DUE | L25: 0
A26: CHANGE DUE PH | B26: =B25-B24 -> 0 | K26: CHANGE DUE PH | L26: =L25-L24 -> 0
A27: Transaction Balance | B27: =(B25-B26)-B24 -> 0 | K27: Transaction Balance | L27: =(L25-L26)-L24 -> 0
A28: DRAWER BALANCE | B28: =(B23+B24)+B26 -> 400 | K28: DRAWER BALANCE | L28: =(L23+L24)+L26 -> 0
A29: CASH OR CHECK IN | B29: 0 | K29: CASH OR CHECK IN | L29: 0
A30: AMOUNT DUE | B30: 0 | K30: AMOUNT DUE | L30: 0
A31: CHANGE DUE PH | B31: =B30-B29 -> 0 | K31: CHANGE DUE PH | L31: =L30-L29 -> 0
A32: Transaction Balance | B32: =(B30-B31)-B29 -> 0 | K32: Transaction Balance | L32: =(L30-L31)-L29 -> 0
A33: DRAWER BALANCE | B33: =(B28+B29)+B31 -> 400 | K33: DRAWER BALANCE | L33: =(L28+L29)+L31 -> 0
A34: CASH OR CHECK IN | B34: 0 | K34: CASH OR CHECK IN | L34: 0
A35: AMOUNT DUE | B35: 0 | K35: AMOUNT DUE | L35: 0
A36: CHANGE DUE PH | B36: =B35-B34 -> 0 | K36: CHANGE DUE PH | L36: =L35-L34 -> 0
A37: Transaction Balance | B37: =(B35-B36)-B34 -> 0 | K37: Transaction Balance | L37: =(L35-L36)-L34 -> 0
A38: DRAWER BALANCE | B38: =(B33+B34)+B36 -> 400 | K38: DRAWER BALANCE | L38: =(L33+L34)+L36 -> 0
A39: CASH OR CHECK IN | B39: 0 | K39: CASH OR CHECK IN | L39: 0
A40: AMOUNT DUE | B40: 0 | K40: AMOUNT DUE | L40: 0
A41: CHANGE DUE PH | B41: =B40-B39 -> 0 | K41: CHANGE DUE PH | L41: =L40-L39 -> 0
A42: Transaction Balance | B42: =(B40-B41)-B39 -> 0 | K42: Transaction Balance | L42: =(L40-L41)-L39 -> 0
A43: DRAWER BALANCE | B43: =(B38+B39)+B41 -> 400 | K43: DRAWER BALANCE | L43: =(L38+L39)+L41 -> 0
A44: CASH OR CHECK IN | B44: 0 | K44: CASH OR CHECK IN | L44: 0
A45: AMOUNT DUE | B45: 0 | K45: AMOUNT DUE | L45: 0
A46: CHANGE DUE PH | B46: =B45-B44 -> 0 | K46: CHANGE DUE PH | L46: =L45-L44 -> 0
A47: Transaction Balance | B47: =(B45-B46)-B44 -> 0 | K47: Transaction Balance | L47: =(L45-L46)-L44 -> 0
A48: DRAWER BALANCE | B48: =(B43+B44)+B46 -> 400 | K48: DRAWER BALANCE | L48: =(L43+L44)+L46 -> 0
A49: CASH OR CHECK IN | B49: 0 | K49: CASH OR CHECK IN | L49: 0
A50: AMOUNT DUE | B50: 0 | K50: AMOUNT DUE | L50: 0
A51: CHANGE DUE PH | B51: =B50-B49 -> 0 | K51: CHANGE DUE PH | L51: =L50-L49 -> 0
A52: Transaction Balance | B52: =(B50-B51)-B49 -> 0 | K52: Transaction Balance | L52: =(L50-L51)-L49 -> 0
A53: DRAWER BALANCE | B53: =(B48+B49)+B51 -> 400 | K53: DRAWER BALANCE | L53: =(L48+L49)+L51 -> 0
A54: CASH OR CHECK IN | B54: 0 | K54: CASH OR CHECK IN | L54: 0
A55: AMOUNT DUE | B55: 0 | K55: AMOUNT DUE | L55: 0
A56: CHANGE DUE PH | B56: =B55-B54 -> 0 | K56: CHANGE DUE PH | L56: =L55-L54 -> 0
A57: Transaction Balance | B57: =(B55-B56)-B54 -> 0 | K57: Transaction Balance | L57: =(L55-L56)-L54 -> 0
A58: DRAWER BALANCE | B58: =(B53+B54)+B56 -> 400 | K58: DRAWER BALANCE | L58: =(L53+L54)+L56 -> 0
A59: CASH OR CHECK IN | B59: 0 | K59: CASH OR CHECK IN | L59: 0
A60: AMOUNT DUE | B60: 0 | K60: AMOUNT DUE | L60: 0
A61: CHANGE DUE PH | B61: =B60-B59 -> 0 | K61: CHANGE DUE PH | L61: =L60-L59 -> 0
A62: Transaction Balance | B62: =(B60-B61)-B59 -> 0 | K62: Transaction Balance | L62: =(L60-L61)-L59 -> 0
A63: DRAWER BALANCE | B63: =(B58+B59)+B61 -> 400 | K63: DRAWER BALANCE | L63: =(L58+L59)+L61 -> 0
A64: CASH OR CHECK IN | B64: 0 | K64: CASH OR CHECK IN | L64: 0
A65: AMOUNT DUE | B65: 0 | K65: AMOUNT DUE | L65: 0
A66: CHANGE DUE PH | B66: =B65-B64 -> 0 | K66: CHANGE DUE PH | L66: =L65-L64 -> 0
A67: Transaction Balance | B67: =(B65-B66)-B64 -> 0 | K67: Transaction Balance | L67: =(L65-L66)-L64 -> 0
A68: DRAWER BALANCE | B68: =(B63+B64)+B66 -> 400 | K68: DRAWER BALANCE | L68: =(L63+L64)+L66 -> 0
A69: CASH OR CHECK IN | B69: 0 | K69: CASH OR CHECK IN | L69: 0
A70: AMOUNT DUE | B70: 0 | K70: AMOUNT DUE | L70: 0
A71: CHANGE DUE PH | B71: =B70-B69 -> 0 | K71: CHANGE DUE PH | L71: =L70-L69 -> 0
A72: Transaction Balance | B72: =(B70-B71)-B69 -> 0 | K72: Transaction Balance | L72: =(L70-L71)-L69 -> 0
A73: DRAWER BALANCE | B73: =(B68+B69)+B71 -> 400 | K73: DRAWER BALANCE | L73: =(L68+L69)+L71 -> 0
A74: CASH OR CHECK IN | B74: 0 | K74: CASH OR CHECK IN | L74: 0
A75: AMOUNT DUE | B75: 0 | K75: AMOUNT DUE | L75: 0
A76: CHANGE DUE PH | B76: =B75-B74 -> 0 | K76: CHANGE DUE PH | L76: =L75-L74 -> 0
A77: Transaction Balance | B77: =(B75-B76)-B74 -> 0 | K77: Transaction Balance | L77: =(L75-L76)-L74 -> 0
A78: DRAWER BALANCE | B78: =(B73+B74)+B76 -> 400 | K78: DRAWER BALANCE | L78: =(L73+L74)+L76 -> 0
A79: CASH OR CHECK IN | B79: 0 | K79: CASH OR CHECK IN | L79: 0
A80: AMOUNT DUE | B80: 0 | K80: AMOUNT DUE | L80: 0
A81: CHANGE DUE PH | B81: =B80-B79 -> 0 | K81: CHANGE DUE PH | L81: =L80-L79 -> 0
A82: Transaction Balance | B82: =(B80-B81)-B79 -> 0 | K82: Transaction Balance | L82: =(L80-L81)-L79 -> 0
A83: DRAWER BALANCE | B83: =(B78+B79)+B81 -> 400 | K83: DRAWER BALANCE | L83: =(L78+L79)+L81 -> 0
A84: CASH OR CHECK IN | B84: 0 | K84: CASH OR CHECK IN | L84: 0
A85: AMOUNT DUE | B85: 0 | K85: AMOUNT DUE | L85: 0
A86: CHANGE DUE PH | B86: =B85-B84 -> 0 | K86: CHANGE DUE PH | L86: =L85-L84 -> 0
A87: Transaction Balance | B87: =(B85-B86)-B84 -> 0 | K87: Transaction Balance | L87: =(L85-L86)-L84 -> 0
A88: DRAWER BALANCE | B88: =(B83+B84)+B86 -> 400 | K88: DRAWER BALANCE | L88: =(L83+L84)+L86 -> 0
A89: CASH OR CHECK IN | B89: 0 | K89: CASH OR CHECK IN | L89: 0
A90: AMOUNT DUE | B90: 0 | K90: AMOUNT DUE | L90: 0
A91: CHANGE DUE PH | B91: =B90-B89 -> 0 | K91: CHANGE DUE PH | L91: =L90-L89 -> 0
A92: Transaction Balance | B92: =(B90-B91)-B89 -> 0 | K92: Transaction Balance | L92: =(L90-L91)-L89 -> 0
A93: DRAWER BALANCE | B93: =(B88+B89)+B91 -> 400 | K93: DRAWER BALANCE | L93: =(L88+L89)+L91 -> 0
A94: CASH OR CHECK IN | B94: 0 | K94: CASH OR CHECK IN | L94: 0
A95: AMOUNT DUE | B95: 0 | K95: AMOUNT DUE | L95: 0
A96: CHANGE DUE PH | B96: =B95-B94 -> 0 | K96: CHANGE DUE PH | L96: =L95-L94 -> 0
A97: Transaction Balance | B97: =(B95-B96)-B94 -> 0 | K97: Transaction Balance | L97: =(L95-L96)-L94 -> 0
A98: DRAWER BALANCE | B98: =(B93+B94)+B96 -> 400 | K98: DRAWER BALANCE | L98: =(L93+L94)+L96 -> 0
A99: CASH OR CHECK IN | B99: 0 | K99: CASH OR CHECK IN | L99: 0
A100: AMOUNT DUE | B100: 0 | K100: AMOUNT DUE | L100: 0
A101: CHANGE DUE PH | B101: =B100-B99 -> 0 | K101: CHANGE DUE PH | L101: =L100-L99 -> 0
A102: Transaction Balance | B102: =(B100-B101)-B99 -> 0 | K102: Transaction Balance | L102: =(L100-L101)-L99 -> 0
A103: DRAWER BALANCE | B103: =(B98+B99)+B101 -> 400 | K103: DRAWER BALANCE | L103: =(L98+L99)+L101 -> 0
A104: CASH OR CHECK IN | B104: 0 | K104: CASH OR CHECK IN | L104: 0
A105: AMOUNT DUE | B105: 0 | K105: AMOUNT DUE | L105: 0
A106: CHANGE DUE PH | B106: =B105-B104 -> 0 | K106: CHANGE DUE PH | L106: =L105-L104 -> 0
A107: Transaction Balance | B107: =(B105-B106)-B104 -> 0 | K107: Transaction Balance | L107: =(L105-L106)-L104 -> 0
A108: DRAWER BALANCE | B108: =(B103+B104)+B106 -> 400 | K108: DRAWER BALANCE | L108: =(L103+L104)+L106 -> 0
A109: CASH OR CHECK IN | B109: 0 | K109: CASH OR CHECK IN | L109: 0
A110: AMOUNT DUE | B110: 0 | K110: AMOUNT DUE | L110: 0
A111: CHANGE DUE PH | B111: =B110-B109 -> 0 | K111: CHANGE DUE PH | L111: =L110-L109 -> 0
A112: Transaction Balance | B112: =(B110-B111)-B109 -> 0 | K112: Transaction Balance | L112: =(L110-L111)-L109 -> 0
A113: DRAWER BALANCE | B113: =(B108+B109)+B111 -> 400 | K113: DRAWER BALANCE | L113: =(L108+L109)+L111 -> 0
A114: CASH OR CHECK IN | B114: 0 | K114: CASH OR CHECK IN | L114: 0
A115: AMOUNT DUE | B115: 0 | K115: AMOUNT DUE | L115: 0
A116: CHANGE DUE PH | B116: =B115-B114 -> 0 | K116: CHANGE DUE PH | L116: =L115-L114 -> 0
A117: Transaction Balance | B117: =(B115-B116)-B114 -> 0 | K117: Transaction Balance | L117: =(L115-L116)-L114 -> 0
A118: DRAWER BALANCE | B118: =(B113+B114)+B116 -> 400 | K118: DRAWER BALANCE | L118: =(L113+L114)+L116 -> 0
A119: CASH OR CHECK IN | B119: 0 | K119: CASH OR CHECK IN | L119: 0
A120: AMOUNT DUE | B120: 0 | K120: AMOUNT DUE | L120: 0
A121: CHANGE DUE PH | B121: =B120-B119 -> 0 | K121: CHANGE DUE PH | L121: =L120-L119 -> 0
A122: Transaction Balance | B122: =(B120-B121)-B119 -> 0 | K122: Transaction Balance | L122: =(L120-L121)-L119 -> 0
A123: DRAWER BALANCE | B123: =(B118+B119)+B121 -> 400 | K123: DRAWER BALANCE | L123: =(L118+L119)+L121 -> 0
A124: CASH OR CHECK IN | B124: 0 | K124: CASH OR CHECK IN | L124: 0
A125: AMOUNT DUE | B125: 0 | K125: AMOUNT DUE | L125: 0
A126: CHANGE DUE PH | B126: =B125-B124 -> 0 | K126: CHANGE DUE PH | L126: =L125-L124 -> 0
A127: Transaction Balance | B127: =(B125-B126)-B124 -> 0 | K127: Transaction Balance | L127: =(L125-L126)-L124 -> 0
A128: DRAWER BALANCE | B128: =(B123+B124)+B126 -> 400 | K128: DRAWER BALANCE | L128: =(L123+L124)+L126 -> 0
A129: CASH OR CHECK IN | B129: 0 | K129: CASH OR CHECK IN | L129: 0
A130: AMOUNT DUE | B130: 0 | K130: AMOUNT DUE | L130: 0
A131: CHANGE DUE PH | B131: =B130-B129 -> 0 | K131: CHANGE DUE PH | L131: =L130-L129 -> 0
A132: Transaction Balance | B132: =(B130-B131)-B129 -> 0 | K132: Transaction Balance | L132: =(L130-L131)-L129 -> 0
A133: DRAWER BALANCE | B133: =(B128+B129)+B131 -> 400 | K133: DRAWER BALANCE | L133: =(L128+L129)+L131 -> 0
A134: CASH OR CHECK IN | B134: 0 | K134: CASH OR CHECK IN | L134: 0
A135: AMOUNT DUE | B135: 0 | K135: AMOUNT DUE | L135: 0
A136: CHANGE DUE PH | B136: =B135-B134 -> 0 | K136: CHANGE DUE PH | L136: =L135-L134 -> 0
A137: Transaction Balance | B137: =(B135-B136)-B134 -> 0 | K137: Transaction Balance | L137: =(L135-L136)-L134 -> 0
A138: DRAWER BALANCE | B138: =(B133+B134)+B136 -> 400 | K138: DRAWER BALANCE | L138: =(L133+L134)+L136 -> 0
A139: CASH OR CHECK IN | B139: 0 | K139: CASH OR CHECK IN | L139: 0
A140: AMOUNT DUE | B140: 0 | K140: AMOUNT DUE | L140: 0
A141: CHANGE DUE PH | B141: =B140-B139 -> 0 | K141: CHANGE DUE PH | L141: =L140-L139 -> 0
A142: Transaction Balance | B142: =(B140-B141)-B139 -> 0 | K142: Transaction Balance | L142: =(L140-L141)-L139 -> 0
A143: DRAWER BALANCE | B143: =(B138+B139)+B141 -> 400 | K143: DRAWER BALANCE | L143: =(L138+L139)+L141 -> 0
A144: CASH OR CHECK IN | B144: 0 | K144: CASH OR CHECK IN | L144: 0
A145: AMOUNT DUE | B145: 0 | K145: AMOUNT DUE | L145: 0
A146: CHANGE DUE PH | B146: =B145-B144 -> 0 | K146: CHANGE DUE PH | L146: =L145-L144 -> 0
A147: Transaction Balance | B147: =(B145-B146)-B144 -> 0 | K147: Transaction Balance | L147: =(L145-L146)-L144 -> 0
A148: DRAWER BALANCE | B148: =(B143+B144)+B146 -> 400 | K148: DRAWER BALANCE | L148: =(L143+L144)+L146 -> 0
A149: CASH OR CHECK IN | B149: 0 | K149: CASH OR CHECK IN | L149: 0
A150: AMOUNT DUE | B150: 0 | K150: AMOUNT DUE | L150: 0
A151: CHANGE DUE PH | B151: =B150-B149 -> 0 | K151: CHANGE DUE PH | L151: =L150-L149 -> 0
A152: Transaction Balance | B152: =(B150-B151)-B149 -> 0 | K152: Transaction Balance | L152: =(L150-L151)-L149 -> 0
A153: DRAWER BALANCE | B153: =(B148+B149)+B151 -> 400 | K153: DRAWER BALANCE | L153: =(L148+L149)+L151 -> 0
A154: CASH OR CHECK IN | B154: 0 | K154: CASH OR CHECK IN | L154: 0
A155: AMOUNT DUE | B155: 0 | K155: AMOUNT DUE | L155: 0
A156: CHANGE DUE PH | B156: =B155-B154 -> 0 | K156: CHANGE DUE PH | L156: =L155-L154 -> 0
A157: Transaction Balance | B157: =(B155-B156)-B154 -> 0 | K157: Transaction Balance | L157: =(L155-L156)-L154 -> 0
A158: DRAWER BALANCE | B158: =(B153+B154)+B156 -> 400 | K158: DRAWER BALANCE | L158: =(L153+L154)+L156 -> 0
A159: CASH OR CHECK IN | B159: 0 | K159: CASH OR CHECK IN | L159: 0
A160: AMOUNT DUE | B160: 0 | K160: AMOUNT DUE | L160: 0
A161: CHANGE DUE PH | B161: =B160-B159 -> 0 | K161: CHANGE DUE PH | L161: =L160-L159 -> 0
A162: Transaction Balance | B162: =(B160-B161)-B159 -> 0 | K162: Transaction Balance | L162: =(L160-L161)-L159 -> 0
A163: DRAWER BALANCE | B163: =(B158+B159)+B161 -> 400 | K163: DRAWER BALANCE | L163: =(L158+L159)+L161 -> 0
A164: CASH OR CHECK IN | B164: 0 | K164: CASH OR CHECK IN | L164: 0
A165: AMOUNT DUE | B165: 0 | K165: AMOUNT DUE | L165: 0
A166: CHANGE DUE PH | B166: =B165-B164 -> 0 | K166: CHANGE DUE PH | L166: =L165-L164 -> 0
A167: Transaction Balance | B167: =(B165-B166)-B164 -> 0 | K167: Transaction Balance | L167: =(L165-L166)-L164 -> 0
A168: DRAWER BALANCE | B168: =(B163+B164)+B166 -> 400 | K168: DRAWER BALANCE | L168: =(L163+L164)+L166 -> 0
A169: CASH OR CHECK IN | B169: 0 | K169: CASH OR CHECK IN | L169: 0
A170: AMOUNT DUE | B170: 0 | K170: AMOUNT DUE | L170: 0
A171: CHANGE DUE PH | B171: =B170-B169 -> 0 | K171: CHANGE DUE PH | L171: =L170-L169 -> 0
A172: Transaction Balance | B172: =(B170-B171)-B169 -> 0 | K172: Transaction Balance | L172: =(L170-L171)-L169 -> 0
A173: DRAWER BALANCE | B173: =(B168+B169)+B171 -> 400 | K173: DRAWER BALANCE | L173: =(L168+L169)+L171 -> 0
A174: CASH OR CHECK IN | B174: 0 | K174: CASH OR CHECK IN | L174: 0
A175: AMOUNT DUE | B175: 0 | K175: AMOUNT DUE | L175: 0
A176: CHANGE DUE PH | B176: =B175-B174 -> 0 | K176: CHANGE DUE PH | L176: =L175-L174 -> 0
A177: Transaction Balance | B177: =(B175-B176)-B174 -> 0 | K177: Transaction Balance | L177: =(L175-L176)-L174 -> 0
A178: DRAWER BALANCE | B178: =(B173+B174)+B176 -> 400 | K178: DRAWER BALANCE | L178: =(L173+L174)+L176 -> 0
A179: CASH OR CHECK IN | B179: 0 | K179: CASH OR CHECK IN | L179: 0
A180: AMOUNT DUE | B180: 0 | K180: AMOUNT DUE | L180: 0
A181: CHANGE DUE PH | B181: =B180-B179 -> 0 | K181: CHANGE DUE PH | L181: =L180-L179 -> 0
A182: Transaction Balance | B182: =(B180-B181)-B179 -> 0 | K182: Transaction Balance | L182: =(L180-L181)-L179 -> 0
A183: DRAWER BALANCE | B183: =(B178+B179)+B181 -> 400 | K183: DRAWER BALANCE | L183: =(L178+L179)+L181 -> 0
A184: CASH OR CHECK IN | B184: 0 | K184: CASH OR CHECK IN | L184: 0
A185: AMOUNT DUE | B185: 0 | K185: AMOUNT DUE | L185: 0
A186: CHANGE DUE PH | B186: =B185-B184 -> 0 | K186: CHANGE DUE PH | L186: =L185-L184 -> 0
A187: Transaction Balance | B187: =(B185-B186)-B184 -> 0 | K187: Transaction Balance | L187: =(L185-L186)-L184 -> 0
A188: DRAWER BALANCE | B188: =(B183+B184)+B186 -> 400 | K188: DRAWER BALANCE | L188: =(L183+L184)+L186 -> 0
A189: CASH OR CHECK IN | B189: 0 | K189: CASH OR CHECK IN | L189: 0
A190: AMOUNT DUE | B190: 0 | K190: AMOUNT DUE | L190: 0
A191: CHANGE DUE PH | B191: =B190-B189 -> 0 | K191: CHANGE DUE PH | L191: =L190-L189 -> 0
A192: Transaction Balance | B192: =(B190-B191)-B189 -> 0 | K192: Transaction Balance | L192: =(L190-L191)-L189 -> 0
A193: DRAWER BALANCE | B193: =(B188+B189)+B191 -> 400 | K193: DRAWER BALANCE | L193: =(L188+L189)+L191 -> 0
A194: CASH OR CHECK IN | B194: 0 | K194: CASH OR CHECK IN | L194: 0
A195: AMOUNT DUE | B195: 0 | K195: AMOUNT DUE | L195: 0
A196: CHANGE DUE PH | B196: =B195-B194 -> 0 | K196: CHANGE DUE PH | L196: =L195-L194 -> 0
A197: Transaction Balance | B197: =(B195-B196)-B194 -> 0 | K197: Transaction Balance | L197: =(L195-L196)-L194 -> 0
A198: DRAWER BALANCE | B198: =(B193+B194)+B196 -> 400 | K198: DRAWER BALANCE | L198: =(L193+L194)+L196 -> 0
A199: CASH OR CHECK IN | B199: 0 | K199: CASH OR CHECK IN | L199: 0
A200: AMOUNT DUE | B200: 0 | K200: AMOUNT DUE | L200: 0
... 53 more rows

Sheet CASH DRAWER CALC
L1: =TODAY() -> 2022-07-14
C2: Cash Drawer Count
C4: 0 | I4: Checks IN | L4: List All Reciepts
C5: Denomination: | E5: Value | G5: Value | I5: Name | J5: Amount | L5: Name | M5: Type | N5: Amount | Q5: PRINT
C6: 0.01 | E6: =C6*D6 -> 0 | G6: =F6*C6 -> 0
C7: 0.05 | E7: 0 | G7: 0
C8: 0.1 | E8: 0 | G8: 0
C9: 0.25 | E9: 0 | G9: 0
C10: 1 | E10: 0 | G10: 0
C11: 5 | E11: 0 | G11: 0 | Q11: Clear
C12: 10 | E12: 0 | G12: 0 | K12: 129.5 | Q12: Screen
C13: 20 | E13: 0 | G13: 0
C14: 50 | E14: 0 | G14: 0
C15: 100 | E15: 0 | G15: 0
J16: =F150=SUM(J6:J15) -> TRUE
D17: TOTAL: | E17: =SUM(E6:E16) -> 0 | I17: TOTAL: | J17: =SUM(J6:J15) -> 0
G19: Cash Total | H19: =E17 -> 0 | I19: Cash Deposit | J19: =SUM(N19-J17) -> 0 | L19: TOTAL: | N19: =SUM(N6:N18) -> 0
G20: Checks | H20: =J17 -> 0 | I20: Checks Deposit | J20: =SUM(J6:J15) -> 0
G21: TOTAL EOD | H21: =H19+H20 -> 0
G22: LESS DRAWER | H22: =SUM(G6:G15) -> 0
G23: DEPOSIT | H23: =SUM(N6:N18) -> 0

Sheet 2006 (hidden)
AA1: =SUM(AA2:AA11) -> 417.5 | AB1: Change Needed
C2: Cash Drawer Count | N2: =TODAY() -> 2022-07-14 | T2: =F6*C6 -> 0 | Y2: =AA2/Z2 -> 50 | Z2: 0.01 | AA2: 0.5 | AB2: =(((AA2/0.01)-F6)/50)*-1 -> -1 | AC2: rolls | AD2: =IF(AB2<0,AB2,0) -> -1 | AE2: =(ROUNDUP(AD2,0))*-1 -> 1 | AF2: =AE2*0.5 -> 0.5 | AG2: Penny Rolls
T3: 0 | Y3: 40 | Z3: 0.05 | AA3: 2 | AB3: =(((AA3/0.05)-F7)/40)*-1 -> -1 | AC3: rolls | AD3: =IF(AB3<0,AB3,0) -> -1 | AE3: =(ROUNDUP(AD3,0))*-1 -> 1 | AF3: =AE3*2 -> 2 | AG3: Nickle Rolls
C4: CASH | I4: Checks IN | N4: List All Reciepts | T4: 0 | Y4: 50 | Z4: 0.1 | AA4: 5 | AB4: =(((AA4/0.1)-F8)/50)*-1 -> -1 | AC4: rolls | AD4: -1 | AE4: 1 | AF4: =AE4*5 -> 5 | AG4: Dime rolls
C5: Denomination: | D5: QTY: | E5: Value | F5: Keep | G5: Value | I5: Name | J5: Amount | K5: name | L5: Amount | N5: Name | O5: Amount | R5: PRINT | T5: 0 | Y5: 40 | Z5: 0.25 | AA5: 10 | AB5: =(((AA5/0.25)-F9)/40)*-1 -> -1 | AC5: rolls | AD5: -1 | AE5: 1 | AF5: =AE5*10 -> 10 | AG5: Quarter Rolls
C6: 0.01 | E6: =C6*D6 -> 0 | G6: =F6*C6 -> 0 | T6: 0 | Y6: 50 | Z6: 1 | AA6: 50 | AB6: =((AA6-G10)/1)*-1 -> -50 | AC6: bills | AD6: -50 | AE6: 50 | AF6: =AE6*1 -> 50 | AG6: Dollar Bills
C7: 0.05 | E7: =C7*D7 -> 0 | G7: 0 | T7: 0 | Y7: 10 | Z7: 5 | AA7: 50 | AB7: =((AA7-G11)/5)*-1 -> -10 | AC7: bills | AD7: -10 | AE7: 10 | AF7: =AE7*5 -> 50 | AG7: Five Dollar Bills
C8: 0.1 | E8: 0 | G8: 0 | T8: 0 | Y8: 10 | Z8: 10 | AA8: 100 | AB8: =((AA8-G12)/10)*-1 -> -10 | AC8: bills | AD8: -10 | AE8: 10 | AF8: =AE8*10 -> 100 | AG8: Ten Dollar Bills
C9: 0.25 | E9: 0 | G9: 0 | T9: 0 | Y9: 10 | Z9: 20 | AA9: 200 | AB9: =((AA9-G13)/20)*-1 -> -10 | AC9: bills | AD9: -10 | AE9: 10 | AF9: =AE9*20 -> 200 | AG9: Twenty Dollar Bills
C10: 1 | E10: 0 | G10: 0 | T10: 0 | Z10: 50 | AA10: 0 | AB10: =((AA10-G14)/50)*-1 -> 0 | AC10: bills | AD10: 0 | AE10: 0 | AF10: =AE10*50 -> 0 | AG10: Fifty Dollar Bills
C11: 5 | E11: =C11*D11 -> 0 | G11: 0 | R11: Clear | T11: 0 | Z11: 100 | AA11: 0 | AB11: =((AA11-G15)/100)*-1 -> 0 | AC11: bills | AD11: 0 | AE11: 0 | AF11: =AE11*100 -> 0 | AG11: One Hundred Dollar Bills
C12: 10 | E12: =C12*D12 -> 0 | G12: 0 | R12: Screen | T12: =SUM(T2:T11) -> 0 | AF12: =SUM(AF2:AF11) -> 417.5 | AG12: Cash to take to bank
C13: 20 | E13: =C13*D13 -> 0 | G13: 0
C14: 50 | E14: 0 | G14: 0
C15: 100 | E15: 0 | G15: 0
J16: =SUM(J6:J15) -> 0 | L16: =SUM(L6:L15) -> 0
D17: TOTAL: | E17: =SUM(E6:E16) -> 0 | K17: TOTAL: | L17: =SUM(J6:J15,L6:L15) -> 0
G19: End of Day | H19: Deposit | I19: Beginning of Next Day
F20: Cash | G20: =E17 -> 0 | H20: =E17-T12 -> 0 | I20: =G20-H20 -> 0
F21: Checks | G21: =L17 -> 0 | H21: =G21 -> 0 | I21: =G21-H21 -> 0
F22: TOTAL: | G22: =SUM(G20:G21) -> 0 | H22: =SUM(H20:H21) -> 0 | I22: =SUM(I20:J21) -> 0
R23: Final Clear
R24: & Save
F25: Starting Amount | H25: =I20 -> 0
A26: Beginning of Day | F26: Ending Amount | H26: =G22 -> 0 | I26: 1
C27: 1 | D27: 2 | E27: 3 | F27: Deposit | H27: =H22 -> 0 | I27: 2
A28: Date | B28: Starting Amount | C28: Ending Amount | D28: Deposit | E28: All Reciepts | F28: All Reciepts | H28: =O28 -> 0 | I28: 3 | N28: TOTAL: | O28: =SUM(O6:O26) -> 0
A29: 2006-03-07 | B29: 0 | C29: 4486.08 | D29: 4158.56 | E29: 33.48
A30: =A29+1 -> 2006-03-08 | B30: =C29-D29 -> 327.52 | C30: 1364.13 | D30: 948.61 | E30: 0 | N30: "Click Me" to Print | O30: 14
A31: 2006-03-09 | B31: 415.52 | C31: 515.52 | D31: 100 | E31: 0 | G31: =TODAY() -> 2022-07-14 | H31: Today | K31: For change you need: | O31: 46
A32: 2006-03-10 | B32: 415.52 | C32: 1502.88 | D32: 1056.84 | E32: 10 | G32: =VLOOKUP(G31,A29:E328,2) -> 518.47 | H32: Beginning of Day | K32: =AF12 -> 417.5 | O32: 63
A33: 2006-03-11 | B33: 446.04 | C33: =B33 -> 446.04 | D33: 0 | E33: 0 | G33: =G22 -> 0 | H33: Total at End of Day | K33: Penny Rolls | L33: =AE2 -> 1 | O33: 10
A34: 2006-03-12 | B34: 446.04 | C34: =B34 -> 446.04 | D34: 0 | E34: 0 | G34: =SUM(O28)+G32 -> 518.47 | H34: Reciept Balance | K34: Nickle Rolls | L34: =AE3 -> 1 | O34: 15
A35: 2006-03-13 | B35: 446.04 | C35: 940.95 | D35: 365.1 | E35: 0 | G35: =G33-G34 -> -518.47 | H35: Balance (Over or Under) | K35: Dime rolls | L35: 1 | O35: 1
A36: 2006-03-14 | B36: =C35-D35 -> 575.85 | C36: 703.6 | D36: 227.5 | E36: 0 | K36: Quarter Rolls | L36: 1 | O36: 10
A37: 2006-03-15 | B37: 476.1 | C37: 703.6 | D37: 227.5 | E37: 0 | K37: Dollar Bills | L37: 50 | O37: 2
A38: 2006-03-16 | B38: 476.1 | C38: 3523.12 | D38: 3155.02 | E38: 0 | K38: Five Dollar Bills | L38: 10 | O38: 3
A39: 2006-03-17 | B39: 368.1 | C39: 582.5 | D39: 263.14 | E39: 0 | K39: Ten Dollar Bills | L39: 10 | O39: 5
A40: 2006-03-18 | B40: 319.36 | C40: =B40 -> 319.36 | K40: Twenty Dollar Bills | L40: 10
A41: 2006-03-19 | B41: 319.36 | C41: =B41 -> 319.36
A42: =A41+1 -> 2006-03-20 | B42: 319.36 | C42: 444.11 | D42: 100 | E42: 0
A43: 2006-03-21 | B43: =C42-D42 -> 344.11 | C43: 1191.36 | D43: 837 | E43: 0
A44: 2006-03-22 | B44: 354.36 | C44: 514.25 | D44: 50 | E44: 0
A45: 2006-03-23 | B45: 464.25 | C45: 720.91 | D45: 269.8 | E45: 0
A46: 2006-03-24 | B46: 451.11 | C46: 1000.04 | D46: 564.18 | E46: 0
A47: 2006-03-25 | B47: 435.86 | C47: =B47 -> 435.86
A48: 2006-03-26 | B48: 435.86 | C48: =B48 -> 435.86
A49: 2006-03-27 | B49: 435.86 | C49: 988.88 | D49: 593 | E49: 0
A50: 2006-03-28 | B50: 395.88 | C50: 988.88 | D50: 593 | E50: 0
A51: 2006-03-29 | B51: 395.88 | C51: 919.01 | D51: 547.94 | E51: 0
A52: 2006-03-30 | B52: 371.07 | C52: 470.42 | D52: 125 | E52: 0.1
A53: 2006-03-31 | B53: 345.42 | C53: 1985.45 | D53: 1436 | E53: 0
A54: 2006-04-01 | B54: 549.45 | C54: =B54 -> 549.45
A55: 2006-04-02 | B55: 549.45 | C55: =B55 -> 549.45
A56: 2006-04-03 | B56: 549.45 | C56: 3165.58 | D56: 2606.5 | E56: 0
A57: 2006-04-04 | B57: 559.08 | C57: 2655.78 | D57: 2048 | E57: 15
A58: 2006-04-05 | B58: 607.78 | C58: 1279.02 | D58: 652.99 | E58: 0
A59: 2006-04-06 | B59: 626.03 | C59: 1023.04 | D59: 559.5 | E59: 0
A60: 2006-04-07 | B60: 463.54 | C60: 842.13 | D60: 300 | E60: 18
A61: 2006-04-08 | B61: 542.13 | C61: =B61 -> 542.13
A62: 2006-04-09 | B62: 542.13 | C62: =B62 -> 542.13
A63: 2006-04-10 | B63: 542.13 | C63: 4123.75 | D63: 3667.87 | E63: 0
A64: 2006-04-11 | B64: 455.88 | C64: 985 | D64: 569.02 | E64: 0
A65: 2006-04-12 | B65: 415.98 | C65: 1132.98 | D65: 727 | E65: 0
A66: 2006-04-13 | B66: 405.98 | C66: 3083.28 | D66: 2673.8 | E66: 0
A67: 2006-04-14 | B67: 409.48 | C67: =B67 -> 409.48
A68: 2006-04-15 | B68: 409.48 | C68: =B68 -> 409.48
A69: 2006-04-16 | B69: 409.48 | C69: =B69 -> 409.48
A70: 2006-04-17 | B70: 409.48 | C70: 658.97 | D70: 250 | E70: 0
A71: 2006-04-18 | B71: 408.97 | C71: 953.22 | D71: 520 | E71: 0
A72: 2006-04-19 | B72: 433.22 | C72: 575.67 | D72: 142.25 | E72: 0
A73: 2006-04-20 | B73: 433.42 | C73: 603.88 | D73: 168.16 | E73: 0
A74: 2006-04-21 | B74: 435.72 | C74: 3027.81 | D74: 2666.93 | E74: 0
A75: 2006-04-22 | B75: 360.88 | C75: =B75 -> 360.88
A76: 2006-04-23 | B76: 360.88 | C76: =B76 -> 360.88
A77: 2006-04-24 | B77: 360.88 | C77: 2922.34 | D77: 2561.38 | E77: 0
A78: 2006-04-25 | B78: 360.96 | C78: 431.09 | D78: 50 | E78: 70.14
A79: 2006-04-26 | B79: 381.09 | C79: 545.59 | D79: 150 | E79: 164.5
A80: 2006-04-27 | B80: 395.59 | C80: 761.17 | D80: 347.48 | E80: 365.48
A81: 2006-04-28 | B81: 413.69 | C81: 726.19 | D81: 247.5 | E81: 353.05
A82: 2006-04-29 | B82: 478.69 | C82: =B82 -> 478.69
A83: 2006-04-30 | B83: 478.69 | C83: =B83 -> 478.69
A84: 2006-05-01 | B84: 478.69 | C84: 1613.23 | D84: 972.57 | E84: 1134.54
A85: 2006-05-02 | B85: 640.66 | C85: 1415.47 | D85: 916.5 | E85: 776.5
A86: 2006-05-03 | B86: 498.97 | C86: 2423.72 | D86: 2010.6 | E86: 1479.25
A87: 2006-05-04 | B87: 413.12 | C87: 910.74 | D87: 451 | E87: 499.22
A88: 2006-05-05 | B88: 459.74 | C88: 1071.69 | D88: 671.34 | E88: 611.33
A89: 2006-05-06 | B89: 400.35 | C89: =B89 -> 400.35
A90: 2006-05-07 | B90: 400.35 | C90: =B90 -> 400.35
A91: 2006-05-08 | B91: 400.35 | C91: 1687.27 | D91: 1296.5 | E91: 1286.5
A92: 2006-05-09 | B92: 390.77 | C92: 1033.21 | D92: 632.44 | E92: 642.44
A93: 2006-05-10 | B93: 400.77 | C93: 3145.07 | D93: 2746.92 | E93: 2744.3
A94: 2006-05-11 | B94: 398.15 | C94: 1110.7 | D94: 705.24 | E94: 712.74
A95: 2006-05-12 | B95: 405.46 | C95: 1056.88 | D95: 612 | E95: 651.42
A96: 2006-05-13 | B96: 444.88 | C96: =B96 -> 444.88
A97: 2006-05-14 | B97: 444.88 | C97: =B97 -> 444.88
A98: 2006-05-15 | B98: 444.88 | C98: 1088.22 | D98: 683.23 | E98: 643.23
A99: 2006-05-16 | B99: 404.99 | C99: 774.54 | D99: 360.7 | E99: 369.45
A100: 2006-05-17 | B100: 413.84 | C100: 928.27 | D100: 527.75 | E100: 514.48
A101: 2006-05-18 | B101: 400.52 | C101: 2432.77 | D101: 2020 | E101: 2032.25
A102: 2006-05-19 | B102: 412.77 | C102: 887.7 | D102: 479.75 | E102: 475.13
A103: 2006-05-20 | B103: 407.95 | C103: =B103 -> 407.95
A104: 2006-05-21 | B104: 407.95 | C104: =B104 -> 407.95
A105: 2006-05-22 | B105: 407.95 | C105: 1051.45 | D105: 699 | E105: 644
A106: =A105+1 -> 2006-05-23 | B106: 352.45 | C106: 865.52 | D106: 440 | E106: 516.83
A107: 2006-05-24 | B107: =C106-D106 -> 425.52 | C107: 2132.91 | D107: 1704.5 | E107: 1704.89
A108: 2006-05-25 | B108: 428.41 | C108: 1600.78 | D108: 1172.32 | E108: 1172.32
A109: 2006-05-26 | B109: 428.46 | C109: 2544.65 | D109: 2144.44 | E109: 2116.42
A110: 2006-05-27 | B110: 400.21 | C110: =B110 -> 400.21
A111: 2006-05-28 | B111: 400.21 | C111: =B111 -> 400.21
A112: 2006-05-29 | B112: 400.21 | C112: =C111 -> 400.21
A113: 2006-05-30 | B113: 400.21 | C113: 1956.1 | D113: 1552.96 | E113: 1555.71
A114: 2006-05-31 | B114: 403.14 | C114: 1264.64 | D114: 861.8 | E114: 861.7
A115: 2006-06-01 | B115: 402.84 | C115: 956.28 | D115: 357 | E115: 553.65
A116: 2006-06-02 | B116: 599.28 | C116: 1632.31 | D116: 1013.1 | E116: 1034
A117: 2006-06-03 | B117: 619.21 | C117: =B117 -> 619.21
A118: 2006-06-04 | B118: 619.21 | C118: =B118 -> 619.21
A119: 2006-06-05 | B119: 619.21 | C119: 1153.13 | D119: 717.17 | E119: 533.92
A120: 2006-06-06 | B120: 435.96 | C120: 896.57 | D120: 460.66 | E120: 460.66
A121: 2006-06-07 | B121: 435.91 | C121: 1038.66 | D121: 576.68 | E121: 602.75
A122: 2006-06-08 | B122: 461.98 | C122: 787.19 | D122: 562.55 | E122: 355.21
A123: 2006-06-09 | B123: 224.64 | C123: 1120.89 | D123: 642.79 | E123: 919.21
A124: 2006-06-10 | B124: 478.1 | C124: =B124 -> 478.1
A125: 2006-06-11 | B125: 478.1 | C125: =B125 -> 478.1
A126: 2006-06-12 | B126: 478.1 | C126: 772.96 | D126: 374.75 | E126: 294.75
A127: 2006-06-13 | B127: 398.21 | C127: 2100.77 | D127: 1702.55 | E127: 1702.55
A128: 2006-06-14 | B128: 398.22 | C128: 1596.32 | D128: 1195.5 | E128: 1198.1
A129: 2006-06-15 | B129: 400.82 | C129: 903.03 | D129: 485.79 | E129: 502.21
A130: 2006-06-16 | B130: 417.24 | C130: 1344.99 | D130: 927.75 | E130: 927.75
A131: 2006-06-17 | B131: 417.24 | C131: =B131 -> 417.24
A132: 2006-06-18 | B132: 417.24 | C132: =B132 -> 417.24
A133: 2006-06-19 | B133: 417.24 | C133: 815.94 | D133: 398.6 | E133: 398.7
A134: 2006-06-20 | B134: 417.34 | C134: 1404.59 | D134: 988.25 | E134: 987.25
A135: 2006-06-21 | B135: 416.34 | C135: 803.88 | D135: 380.63 | E135: 387.63
A136: 2006-06-22 | B136: 423.25 | C136: 812.5 | D136: 408.75 | E136: 389.25
A137: 2006-06-23 | B137: 403.75 | C137: 883.74 | D137: 481.99 | E137: 479.99
A138: 2006-06-24 | B138: 401.75 | C138: =B138 -> 401.75
A139: 2006-06-25 | B139: 401.75 | C139: =B139 -> 401.75
A140: 2006-06-26 | B140: 401.75 | C140: 1341.12 | D140: 953.66 | E140: 940.37
A141: 2006-06-27 | B141: 387.46 | C141: 871.5 | D141: 484.04 | E141: 484.04
A142: 2006-06-28 | B142: 387.46 | C142: 1257.12 | D142: 869.22 | E142: 869.61
A143: 2006-06-29 | B143: 387.9 | C143: 585.9 | D143: 198 | E143: 198
A144: 2006-06-30 | B144: 387.9 | C144: 4832.01 | D144: 4386.77 | E144: 4443.61
A145: 2006-07-01 | B145: 445.24 | C145: =B145 -> 445.24
A146: 2006-07-02 | B146: 445.24 | C146: =B146 -> 445.24
A147: 2006-07-03 | B147: 445.24 | C147: =B147 -> 445.24
A148: 2006-07-04 | B148: 445.24 | C148: =B148 -> 445.24
A149: 2006-07-05 | B149: 445.24 | C149: 1807.54 | D149: 1307.5 | E149: 1362.45
A150: 2006-07-06 | B150: 500.04 | C150: 1788.14 | D150: 1152.12 | E150: 1281.1
A151: 2006-07-07 | B151: 636.02 | C151: 1017.42 | D151: 581.6 | E151: 381.4
A152: 2006-07-08 | B152: 435.82 | C152: =B152 -> 435.82
A153: 2006-07-09 | B153: 435.82 | C153: =B153 -> 435.82
A154: 2006-07-10 | B154: 435.82 | C154: 1094.25 | D154: 667.25 | E154: 663.13
A155: 2006-07-11 | B155: 427 | C155: 736.25 | D155: 331 | E155: 309.25
A156: 2006-07-12 | B156: 405.25 | C156: 570.88 | D156: 165.73 | E156: 165.73
A157: 2006-07-13 | B157: 405.15 | C157: 1419.15 | D157: 1010.09 | E157: 1012.62
A158: 2006-07-14 | B158: 409.06 | C158: 638.05 | D158: 200 | E158: 229
A159: 2006-07-15 | B159: 438.05 | C159: =B159 -> 438.05
A160: 2006-07-16 | B160: 438.05 | C160: =B160 -> 438.05
A161: 2006-07-17 | B161: 438.05 | C161: 1158.89 | D161: 730.05 | E161: 714.54
A162: 2006-07-18 | B162: 428.84 | C162: 437.63 | D162: 0 | E162: 2.73
A163: 2006-07-19 | B163: 437.63 | C163: 766.64 | D163: 333.6 | E163: 329.01
A164: 2006-07-20 | B164: 433.04 | C164: 562.64 | D164: 129.5 | E164: 129.5
A165: 2006-07-21 | B165: 433.14 | C165: 1631.69 | D165: 1198.5 | E165: 1198.75
A166: 2006-07-22 | B166: 433.19 | C166: =B166 -> 433.19
A167: 2006-07-23 | B167: 433.19 | C167: =B167 -> 433.19
A168: 2006-07-24 | B168: 433.19 | C168: 2161.93 | D168: 1763.72 | E168: 1760.14
A169: 2006-07-25 | B169: 398.21 | C169: 879.71 | D169: 481.5 | E169: 481.5
A170: =A169+1 -> 2006-07-26 | B170: 398.21 | C170: 1374.21 | D170: 976 | E170: 976
A171: 2006-07-27 | B171: =C170-D170 -> 398.21 | C171: 734.71 | D171: 336.5 | E171: 336.5
A172: 2006-07-28 | B172: 398.21 | C172: 513.45 | D172: 119.99 | E172: 115.39
A173: 2006-07-29 | B173: 393.46 | C173: =B173 -> 393.46
A174: 2006-07-30 | B174: 393.46 | C174: =B174 -> 393.46
A175: 2006-07-31 | B175: 393.46 | C175: 1155.81 | D175: 762.75 | E175: 762.75
A176: 2006-08-01 | B176: 393.06 | C176: 1174.59 | D176: 539.1 | E176: 781.53
A177: 2006-08-02 | B177: 635.49 | C177: 1503.19 | D177: 876.3 | E177: 867.65
A178: 2006-08-03 | B178: 626.89 | C178: 2153.5 | D178: 1520.26 | E178: 1526.66
A179: 2006-08-04 | B179: 633.24 | C179: 1187.74 | D179: 686.5 | E179: 554.5
A180: 2006-08-05 | B180: 501.24 | C180: =B180 -> 501.24
A181: 2006-08-06 | B181: 501.24 | C181: =B181 -> 501.24
A182: 2006-08-07 | B182: 501.24 | C182: 501.24 | D182: 0 | E182: 0
A183: 2006-08-08 | B183: 501.24 | C183: 2701 | D183: 2240.5 | E183: 2199.76
A184: 2006-08-09 | B184: 460.5 | C184: 1674.06 | D184: 1252 | E184: 1213.65
A185: 2006-08-10 | B185: 422.06 | C185: 878.77 | D185: 442.23 | E185: 456.71
A186: 2006-08-11 | B186: 436.54 | C186: 1119.77 | D186: 698 | E186: 683.23
A187: 2006-08-12 | B187: 421.77 | C187: =B187 -> 421.77
A188: 2006-08-13 | B188: 421.77 | C188: =B188 -> 421.77
A189: 2006-08-14 | B189: 421.77 | C189: 1389.77 | D189: 968 | E189: 968 | G189: .
A190: 2006-08-15 | B190: 421.77 | C190: 2204.09 | D190: 1777.3 | E190: 1782.22
A191: 2006-08-16 | B191: 426.79 | C191: 2277.13 | D191: 1788 | E191: 1850.34
A192: 2006-08-17 | B192: 489.13 | C192: 1392.46 | D192: 955 | E192: 903.33
A193: 2006-08-18 | B193: 437.46 | C193: 1323.46 | D193: 885.5 | E193: 886
A194: 2006-08-19 | B194: 437.96 | C194: =B194 -> 437.96
A195: 2006-08-20 | B195: 437.96 | C195: =B195 -> 437.96
A196: 2006-08-21 | B196: 437.96 | C196: 1187.94 | D196: 754.75 | E196: 749.98
A197: 2006-08-22 | B197: 433.19 | C197: 2313.37 | D197: 1856.24 | E197: 1880.18
A198: 2006-08-23 | B198: 457.13 | C198: 457.13 | D198: 0 | E198: 0
A199: 2006-08-24 | B199: 457.13 | C199: 1197.33 | D199: 746.75 | E199: 740.2
A200: 2006-08-25 | B200: 450.58 | C200: 1232.92 | D200: 856.25 | E200: 782.34
A201: 2006-08-26 | B201: 376.67 | C201: =B201 -> 376.67
... 127 more rows

Sheet Change (hidden)
A1: 0.01 | B1: 100 | C1: =A1*B1 -> 1 | D1: Pennies
A2: 0.05 | B2: 20 | C2: =A2*B2 -> 1 | D2: Nickles
A3: 0.1 | B3: 0 | C3: 0
A4: 0.25 | B4: 0 | C4: 0
A5: 1 | B5: 3 | C5: 3 | D5: Dollars
A6: 5 | B6: 11 | C6: 55 | D6: Fives
A7: 10 | B7: 5 | C7: 50 | D7: Tens
A8: 20 | B8: 2 | C8: 40 | D8: Twentys
A9: 50 | C9: 0
A10: 100 | C10: 0
B12: TOTAL: | C12: =SUM(C1:C11) -> 150

Sheet Type Lookup (hidden)
A1: Am Rel CC
A2: Am Rel Check
A3: Broker CC
A4: Broker Check
A5: Broker Sweep
A6: Nat Gen Sweep
A7: NN - CC
A8: NN - Check
A9: NN - Sweep
A10: PA-CC
A11: PA-COH
A12: PA-DEP
A13: Piedmont Check
A14: Prime Rate Check
A15: Progressive Sweep
A16: VPIA CC
A17: VPIA Check

Sheet Sheet2 (hidden)

Sheet Sheet3 (hidden)
